[Event "*** SCC Grand Prix: Titled Tuesday Blitz"]
[Site "Chess.com"]
[Date "2020.08.25"]
[Round "3"]
[White "english_player_89"]
[Black "novocane"]
[Result "1-0"]
[WhiteElo "2502"]
[BlackElo "2256"]
[TimeControl "180+1"]
[EndTime "10:31:13 PDT"]
[Termination "english_player_89 won by checkmate"]

1. e4 {[%clk 0:03:00.9]} 1... c5 {[%clk 0:02:59.2]} 2. Nf3 {[%clk 0:03:01]} 2...
Nc6 {[%clk 0:02:59.8]} 3. d4 {[%clk 0:03:00.9]} 3... cxd4 {[%clk 0:03:00.2]} 4.
Nxd4 {[%clk 0:03:01.8]} 4... e5 {[%clk 0:03:00.8]} 5. Nb5 {[%clk 0:03:01.5]}
5... d6 {[%clk 0:03:00.3]} 6. c4 {[%clk 0:02:59.3]} 6... Be7 {[%clk 0:03:00.1]}
7. N1c3 {[%clk 0:02:59]} 7... a6 {[%clk 0:02:57.9]} 8. Na3 {[%clk 0:02:59.2]}
8... f5 {[%clk 0:02:58.2]} 9. exf5 {[%clk 0:02:59.1]} 9... Bxf5 {[%clk
0:02:59.1]} 10. Bd3 {[%clk 0:02:59]} 10... Be6 {[%clk 0:02:59.1]} 11. Qh5+
{[%clk 0:02:50.1]} 11... Bf7 {[%clk 0:02:55]} 12. Qg4 {[%clk 0:02:43.5]} 12...
Nf6 {[%clk 0:02:23.1]} 13. Qh3 {[%clk 0:02:28.6]} 13... Nd4 {[%clk 0:02:03.9]}
14. O-O {[%clk 0:02:22.6]} 14... Qd7 {[%clk 0:01:54]} 15. Qxd7+ {[%clk
0:02:12.7]} 15... Nxd7 {[%clk 0:01:53.8]} 16. Be3 {[%clk 0:02:06.5]} 16... O-O
{[%clk 0:01:39.9]} 17. Bxd4 {[%clk 0:02:04.8]} 17... exd4 {[%clk 0:01:39.8]} 18.
Ne2 {[%clk 0:02:00.3]} 18... Bf6 {[%clk 0:01:34.5]} 19. Nc2 {[%clk 0:01:52.1]}
19... Rac8 {[%clk 0:01:31]} 20. Ncxd4 {[%clk 0:01:43.7]} 20... Ne5 {[%clk
0:01:24.6]} 21. Bf5 {[%clk 0:01:40.9]} 21... Rxc4 {[%clk 0:01:23.1]} 22. Rad1
{[%clk 0:01:33.5]} 22... g6 {[%clk 0:01:10.4]} 23. Be6 {[%clk 0:01:32.8]} 23...
d5 {[%clk 0:01:03.8]} 24. Nc3 {[%clk 0:01:27.2]} 24... Rxd4 {[%clk 0:00:58.1]}
25. Bxf7+ {[%clk 0:01:25.5]} 25... Rxf7 {[%clk 0:00:55.8]} 26. Rxd4 {[%clk
0:01:25.2]} 26... Nf3+ {[%clk 0:00:56.1]} 27. gxf3 {[%clk 0:01:25.1]} 27... Bxd4
{[%clk 0:00:56.4]} 28. Nxd5 {[%clk 0:01:21.3]} 28... Rxf3 {[%clk 0:00:56.5]} 29.
b3 {[%clk 0:01:15.4]} 29... Kg7 {[%clk 0:00:51.9]} 30. Kg2 {[%clk 0:01:14.6]}
30... Rf5 {[%clk 0:00:49.9]} 31. Nb4 {[%clk 0:01:11]} 31... a5 {[%clk
0:00:42.7]} 32. Nd3 {[%clk 0:01:10.2]} 32... b5 {[%clk 0:00:38.3]} 33. f4 {[%clk
0:01:09]} 33... a4 {[%clk 0:00:37.9]} 34. Kf3 {[%clk 0:00:59.1]} 34... Rf7
{[%clk 0:00:32.5]} 35. Ke4 {[%clk 0:00:58.7]} 35... Rd7 {[%clk 0:00:31.9]} 36.
Rc1 {[%clk 0:00:49.6]} 36... a3 {[%clk 0:00:19.8]} 37. Rc6 {[%clk 0:00:36.8]}
37... Bb2 {[%clk 0:00:16.9]} 38. Rb6 {[%clk 0:00:31.3]} 38... Rc7 {[%clk
0:00:11.3]} 39. Rxb5 {[%clk 0:00:27.2]} 39... Rc2 {[%clk 0:00:11.3]} 40. Rb7+
{[%clk 0:00:20]} 40... Kf6 {[%clk 0:00:11.6]} 41. Ne5 {[%clk 0:00:19.1]} 41...
Bxe5 {[%clk 0:00:08.7]} 42. fxe5+ {[%clk 0:00:19]} 42... Ke6 {[%clk 0:00:09.2]}
43. Rxh7 {[%clk 0:00:17.3]} 43... Rxa2 {[%clk 0:00:08.6]} 44. Rg7 {[%clk
0:00:16.3]} 44... Rg2 {[%clk 0:00:06.2]} 45. Ra7 {[%clk 0:00:14.4]} 45... a2
{[%clk 0:00:05.2]} 46. Ra6+ {[%clk 0:00:14.6]} 46... Kf7 {[%clk 0:00:04.6]} 47.
h4 {[%clk 0:00:13.9]} 47... Rb2 {[%clk 0:00:04.8]} 48. Kd5 {[%clk 0:00:12.8]}
48... Rxb3 {[%clk 0:00:05.1]} 49. Ra7+ {[%clk 0:00:11.9]} 49... Ke8 {[%clk
0:00:05.4]} 50. Rxa2 {[%clk 0:00:12.3]} 50... Rb6 {[%clk 0:00:05.1]} 51. Rc2
{[%clk 0:00:11]} 51... Ra6 {[%clk 0:00:05.4]} 52. Rc6 {[%clk 0:00:11.1]} 52...
Ra5+ {[%clk 0:00:05.5]} 53. Ke6 {[%clk 0:00:10.9]} 53... Ra4 {[%clk 0:00:06.4]}
54. Rc8# {[%clk 0:00:11.1]} 1-0

[Event "*** SCC Grand Prix: Titled Tuesday Blitz"]
[Site "Chess.com"]
[Date "2020.08.25"]
[Round "3"]
[White "chessplayer9919"]
[Black "Izoria123"]
[Result "0-1"]
[WhiteElo "2595"]
[BlackElo "2853"]
[TimeControl "180+1"]
[EndTime "10:31:14 PDT"]
[Termination "Izoria123 won on time"]

1. d4 {[%clk 0:03:00.9]} 1... d6 {[%clk 0:02:59.2]} 2. e4 {[%clk 0:02:57.7]}
2... Nf6 {[%clk 0:02:58.8]} 3. Nc3 {[%clk 0:02:57.5]} 3... g6 {[%clk 0:02:59.5]}
4. f4 {[%clk 0:02:57.5]} 4... Bg7 {[%clk 0:02:59.5]} 5. Nf3 {[%clk 0:02:57.8]}
5... O-O {[%clk 0:02:58]} 6. e5 {[%clk 0:02:57.8]} 6... Nfd7 {[%clk 0:02:53.5]}
7. h4 {[%clk 0:02:52.9]} 7... c5 {[%clk 0:02:53.4]} 8. h5 {[%clk 0:02:46.3]}
8... cxd4 {[%clk 0:02:53.4]} 9. Qxd4 {[%clk 0:02:44.6]} 9... dxe5 {[%clk
0:02:53.2]} 10. Qf2 {[%clk 0:02:42.4]} 10... e4 {[%clk 0:02:53.1]} 11. Nxe4
{[%clk 0:02:36.3]} 11... Nf6 {[%clk 0:02:52.8]} 12. Nxf6+ {[%clk 0:02:33.3]}
12... exf6 {[%clk 0:02:53.7]} 13. hxg6 {[%clk 0:02:28]} 13... Re8+ {[%clk
0:02:51.9]} 14. Be2 {[%clk 0:02:06.8]} 14... hxg6 {[%clk 0:02:52.8]} 15. Bd2
{[%clk 0:01:48.8]} 15... Nc6 {[%clk 0:02:35]} 16. O-O-O {[%clk 0:01:47.2]} 16...
Bf5 {[%clk 0:02:21.8]} 17. Bc4 {[%clk 0:01:37.2]} 17... Qc7 {[%clk 0:02:08.4]}
18. Nh4 {[%clk 0:01:16.8]} 18... Be4 {[%clk 0:01:55.5]} 19. Bc3 {[%clk
0:01:10.1]} 19... Nb4 {[%clk 0:01:48.1]} 20. Bb3 {[%clk 0:01:03.6]} 20... a5
{[%clk 0:01:42.7]} 21. Nf3 {[%clk 0:00:38.7]} 21... a4 {[%clk 0:01:42]} 22. Qh4
{[%clk 0:00:37.4]} 22... axb3 {[%clk 0:01:25.8]} 23. Qh7+ {[%clk 0:00:37]} 23...
Kf8 {[%clk 0:01:26.4]} 24. Bxb4+ {[%clk 0:00:37.6]} 24... Re7 {[%clk 0:01:27.3]}
25. c3 {[%clk 0:00:12]} 25... Qxf4+ {[%clk 0:01:24.1]} 26. Rd2 {[%clk
0:00:11.3]} 26... bxa2 {[%clk 0:01:20.3]} 27. Qh8+ {[%clk 0:00:05]} 27... Bxh8
{[%clk 0:01:19.3]} 28. Rxh8+ {[%clk 0:00:05.4]} 28... Kg7 {[%clk 0:01:19.3]} 29.
Rxa8 {[%clk 0:00:06.3]} 29... Rd7 {[%clk 0:01:02.9]} 30. Bf8+ {[%clk 0:00:05.7]}
30... Kh7 {[%clk 0:01:02.3]} 31. g3 {[%clk 0:00:03.6]} 31... Rxd2 {[%clk
0:00:46.2]} 32. gxf4 {[%clk 0:00:02.8]} 32... Rc2+ {[%clk 0:00:46.8]} 33. Kd1
{[%clk 0:00:02.6]} 33... Rxb2 {[%clk 0:00:45.5]} 34. Nd2 {[%clk 0:00:01.8]}
34... Rb1+ {[%clk 0:00:43.9]} 35. Ke2 {[%clk 0:00:02.1]} 35... a1=Q {[%clk
0:00:43.9]} 36. Rxa1 {[%clk 0:00:01.9]} 36... Rxa1 {[%clk 0:00:43.2]} 37. Nxe4
{[%clk 0:00:02.5]} 37... f5 {[%clk 0:00:37.5]} 38. Nf6+ {[%clk 0:00:02.5]} 38...
Kh8 {[%clk 0:00:37.3]} 39. Bd6 {[%clk 0:00:03.1]} 39... Kg7 {[%clk 0:00:35.9]}
40. Be5 {[%clk 0:00:03.5]} 40... Kh6 {[%clk 0:00:36.2]} 41. Ne8 {[%clk
0:00:02.1]} 41... Ra6 {[%clk 0:00:24.3]} 42. Kf3 {[%clk 0:00:02.4]} 42... g5
{[%clk 0:00:23.1]} 43. fxg5+ {[%clk 0:00:02]} 43... Kxg5 {[%clk 0:00:24]} 44.
Bf4+ {[%clk 0:00:02.5]} 44... Kg6 {[%clk 0:00:24.2]} 45. Nd6 {[%clk 0:00:02.5]}
45... Ra3 {[%clk 0:00:20.9]} 46. Be5 {[%clk 0:00:01.9]} 46... f6 {[%clk
0:00:20.2]} 47. Bd4 {[%clk 0:00:02.4]} 47... Rb3 {[%clk 0:00:17.8]} 48. Nc8
{[%clk 0:00:02.2]} 48... Kf7 {[%clk 0:00:13.2]} 49. Nd6+ {[%clk 0:00:02.4]}
49... Ke6 {[%clk 0:00:13.5]} 50. Nc4 {[%clk 0:00:02.7]} 50... b5 {[%clk
0:00:12.5]} 51. Ne3 {[%clk 0:00:02.9]} 51... b4 {[%clk 0:00:11.8]} 52. cxb4
{[%clk 0:00:03.8]} 52... Rxb4 {[%clk 0:00:12.3]} 53. Bxf6 {[%clk 0:00:04.4]}
53... f4 {[%clk 0:00:09.8]} 54. Bc3 {[%clk 0:00:02.7]} 54... Ra4 {[%clk
0:00:07.5]} 55. Ng2 {[%clk 0:00:02.4]} 55... Kf5 {[%clk 0:00:07.7]} 56. Nh4+
{[%clk 0:00:02]} 56... Kg5 {[%clk 0:00:08]} 57. Ng2 {[%clk 0:00:02.4]} 57... Ra3
{[%clk 0:00:08.4]} 58. Ne1 {[%clk 0:00:01.3]} 58... Rxc3+ {[%clk 0:00:08.4]} 0-1

[Event "*** SCC Grand Prix: Titled Tuesday Blitz"]
[Site "Chess.com"]
[Date "2020.08.25"]
[Round "3"]
[White "biostatistician"]
[Black "Bulldog167"]
[Result "0-1"]
[WhiteElo "2492"]
[BlackElo "2681"]
[TimeControl "180+1"]
[EndTime "10:31:15 PDT"]
[Termination "Bulldog167 won by resignation"]

1. d4 {[%clk 0:03:00.7]} 1... Nf6 {[%clk 0:03:00]} 2. Nf3 {[%clk 0:03:00.6]}
2... d5 {[%clk 0:02:59.8]} 3. c4 {[%clk 0:03:01.1]} 3... e6 {[%clk 0:03:00.1]}
4. Bg5 {[%clk 0:03:01.4]} 4... Bb4+ {[%clk 0:02:59.4]} 5. Nc3 {[%clk 0:03:01.8]}
5... dxc4 {[%clk 0:02:59.6]} 6. e4 {[%clk 0:03:01.6]} 6... h6 {[%clk 0:02:59.9]}
7. Bxf6 {[%clk 0:03:01.1]} 7... Qxf6 {[%clk 0:03:00.8]} 8. Bxc4 {[%clk 0:03:02]}
8... c5 {[%clk 0:02:54.7]} 9. O-O {[%clk 0:03:01.9]} 9... cxd4 {[%clk 0:02:54]}
10. Nb5 {[%clk 0:03:01]} 10... Qe7 {[%clk 0:02:53.4]} 11. e5 {[%clk 0:02:45.9]}
11... O-O {[%clk 0:02:32.8]} 12. a3 {[%clk 0:02:42.8]} 12... Bc5 {[%clk
0:02:32.9]} 13. b4 {[%clk 0:02:42.7]} 13... Bb6 {[%clk 0:02:33.1]} 14. Qe2
{[%clk 0:02:38.9]} 14... Rd8 {[%clk 0:02:29.2]} 15. Rad1 {[%clk 0:02:36.2]}
15... Nc6 {[%clk 0:02:24.3]} 16. Qe4 {[%clk 0:02:35.1]} 16... a6 {[%clk
0:02:23.3]} 17. Nd6 {[%clk 0:02:11.3]} 17... Nxe5 {[%clk 0:02:17.3]} 18. Nxe5
{[%clk 0:01:59]} 18... Rxd6 {[%clk 0:02:05.7]} 19. Bd3 {[%clk 0:01:59.1]} 19...
f5 {[%clk 0:02:02.7]} 20. Qf4 {[%clk 0:01:56.1]} 20... Qg5 {[%clk 0:02:00.3]}
21. Qf3 {[%clk 0:01:52]} 21... Bc7 {[%clk 0:01:49.5]} 22. Rfe1 {[%clk
0:01:51.6]} 22... Rd5 {[%clk 0:01:44.6]} 23. Nc4 {[%clk 0:01:39.6]} 23... Bd7
{[%clk 0:01:38]} 24. Nd2 {[%clk 0:01:35.4]} 24... Bc6 {[%clk 0:01:14.4]} 25. Bc4
{[%clk 0:01:35.4]} 25... Re5 {[%clk 0:01:12.4]} 26. Qh3 {[%clk 0:01:29.3]} 26...
Rxe1+ {[%clk 0:01:12.3]} 27. Rxe1 {[%clk 0:01:29.4]} 27... Qxd2 {[%clk 0:01:12]}
28. Bxe6+ {[%clk 0:01:29]} 28... Kh8 {[%clk 0:01:10.6]} 29. Rf1 {[%clk
0:01:27.6]} 29... Qg5 {[%clk 0:01:07.2]} 30. Bxf5 {[%clk 0:01:27.6]} 30... Bxg2
{[%clk 0:01:06.8]} 31. Qxg2 {[%clk 0:01:27.2]} 31... Qxf5 {[%clk 0:01:07.2]} 32.
Qxb7 {[%clk 0:01:27.6]} 32... Qc8 {[%clk 0:00:50]} 33. Qd5 {[%clk 0:01:27.4]}
33... Qd8 {[%clk 0:00:49.5]} 34. Qb7 {[%clk 0:01:23.7]} 34... Rb8 {[%clk
0:00:48.5]} 35. Qxa6 {[%clk 0:01:23.6]} 35... Rb6 {[%clk 0:00:48.7]} 36. Qd3
{[%clk 0:01:21.5]} 36... Qh4 {[%clk 0:00:47.6]} 37. h3 {[%clk 0:01:19.3]} 37...
Qf4 {[%clk 0:00:45.7]} 38. Rd1 {[%clk 0:00:50.6]} 38... Qh2+ {[%clk 0:00:44.3]}
39. Kf1 {[%clk 0:00:51]} 39... Qh1+ {[%clk 0:00:40]} 40. Ke2 {[%clk 0:00:51.2]}
40... Re6+ {[%clk 0:00:40.6]} 41. Kd2 {[%clk 0:00:51.4]} 41... Qc6 {[%clk
0:00:37.8]} 42. Rb1 {[%clk 0:00:37.8]} 42... Bf4+ {[%clk 0:00:36.4]} 43. Kd1
{[%clk 0:00:38.4]} 43... Qc3 {[%clk 0:00:24.1]} 44. Qxc3 {[%clk 0:00:37.3]}
44... dxc3 {[%clk 0:00:25]} 45. Kc2 {[%clk 0:00:38.2]} 45... Re2+ {[%clk
0:00:19.5]} 46. Kxc3 {[%clk 0:00:38.1]} 46... Rxf2 {[%clk 0:00:20.2]} 47. a4
{[%clk 0:00:32.5]} 47... Rf3+ {[%clk 0:00:19.8]} 48. Kc4 {[%clk 0:00:32.9]}
48... Rxh3 {[%clk 0:00:19.4]} 49. a5 {[%clk 0:00:33.6]} 49... Ra3 {[%clk
0:00:19.9]} 50. Rb3 {[%clk 0:00:27]} 50... Ra1 {[%clk 0:00:16.9]} 51. Kb5 {[%clk
0:00:17.4]} 51... g5 {[%clk 0:00:16.3]} 52. a6 {[%clk 0:00:14.6]} 52... g4
{[%clk 0:00:16.7]} 53. Kb6 {[%clk 0:00:15.1]} 53... g3 {[%clk 0:00:16]} 54. Rb2
{[%clk 0:00:15.3]} 54... h5 {[%clk 0:00:14.3]} 55. b5 {[%clk 0:00:13.9]} 55...
h4 {[%clk 0:00:14.4]} 56. Kb7 {[%clk 0:00:14]} 56... h3 {[%clk 0:00:14.5]} 57.
b6 {[%clk 0:00:14.7]} 57... h2 {[%clk 0:00:14]} 58. a7 {[%clk 0:00:14]} 58...
h1=Q+ {[%clk 0:00:14.5]} 0-1

[Event "*** SCC Grand Prix: Titled Tuesday Blitz"]
[Site "Chess.com"]
[Date "2020.08.25"]
[Round "3"]
[White "InitiatingASC"]
[Black "Thee-Chessboy"]
[Result "0-1"]
[WhiteElo "2343"]
[BlackElo "2528"]
[TimeControl "180+1"]
[EndTime "10:31:15 PDT"]
[Termination "Thee-Chessboy won by resignation"]

1. Nf3 {[%clk 0:03:00.9]} 1... Nf6 {[%clk 0:02:59.3]} 2. b3 {[%clk 0:02:59.3]}
2... g6 {[%clk 0:02:59.6]} 3. Bb2 {[%clk 0:02:59.7]} 3... Bg7 {[%clk 0:03:00.1]}
4. e3 {[%clk 0:03:00.2]} 4... O-O {[%clk 0:03:00.2]} 5. c4 {[%clk 0:03:00.6]}
5... c5 {[%clk 0:02:59.4]} 6. Be2 {[%clk 0:03:00.8]} 6... Nc6 {[%clk 0:02:59.5]}
7. O-O {[%clk 0:03:01.2]} 7... b6 {[%clk 0:02:52]} 8. d3 {[%clk 0:02:59.3]} 8...
Bb7 {[%clk 0:02:50.6]} 9. Nbd2 {[%clk 0:02:59.5]} 9... d5 {[%clk 0:02:50.8]} 10.
cxd5 {[%clk 0:03:00.4]} 10... Nxd5 {[%clk 0:02:50.4]} 11. Bxg7 {[%clk
0:02:58.6]} 11... Kxg7 {[%clk 0:02:51.3]} 12. Qc2 {[%clk 0:02:52]} 12... f6
{[%clk 0:02:51.3]} 13. a3 {[%clk 0:02:49.6]} 13... Rc8 {[%clk 0:02:51]} 14. Rfd1
{[%clk 0:02:44.8]} 14... e5 {[%clk 0:02:50]} 15. Rac1 {[%clk 0:02:41.5]} 15...
Qe7 {[%clk 0:02:49.8]} 16. Qb2 {[%clk 0:02:39.6]} 16... Rfd8 {[%clk 0:02:49.4]}
17. Bf1 {[%clk 0:02:34.8]} 17... Nc7 {[%clk 0:02:41]} 18. Ne4 {[%clk 0:02:27.9]}
18... Ne6 {[%clk 0:02:37.1]} 19. Rd2 {[%clk 0:02:19]} 19... Rd7 {[%clk 0:02:35]}
20. Rcd1 {[%clk 0:02:19.2]} 20... Rcd8 {[%clk 0:02:34.7]} 21. Nc3 {[%clk
0:02:16.9]} 21... Ba6 {[%clk 0:02:17.4]} 22. Ne1 {[%clk 0:02:07.2]} 22... f5
{[%clk 0:02:09.3]} 23. Nc2 {[%clk 0:02:04]} 23... Kg8 {[%clk 0:01:53.5]} 24. b4
{[%clk 0:01:59.9]} 24... Bb7 {[%clk 0:01:49]} 25. b5 {[%clk 0:01:54.6]} 25...
Na5 {[%clk 0:01:47.7]} 26. Na1 {[%clk 0:01:41]} 26... f4 {[%clk 0:01:37.2]} 27.
Nb3 {[%clk 0:01:34.7]} 27... Nxb3 {[%clk 0:01:34.9]} 28. Qxb3 {[%clk 0:01:34.6]}
28... fxe3 {[%clk 0:01:32.8]} 29. fxe3 {[%clk 0:01:35.5]} 29... Kg7 {[%clk
0:01:30.4]} 30. Qc4 {[%clk 0:01:28.5]} 30... Rf8 {[%clk 0:01:19.5]} 31. Ne4
{[%clk 0:01:14.7]} 31... Bd5 {[%clk 0:01:07.5]} 32. Qc3 {[%clk 0:01:13.5]} 32...
Nc7 {[%clk 0:01:02.6]} 33. Nf2 {[%clk 0:01:06.8]} 33... Nxb5 {[%clk 0:01:00.1]}
34. Qb2 {[%clk 0:01:05]} 34... Nd6 {[%clk 0:00:53.6]} 35. d4 {[%clk 0:01:05.2]}
35... cxd4 {[%clk 0:00:53.3]} 36. exd4 {[%clk 0:00:55.5]} 36... e4 {[%clk
0:00:53]} 37. Re2 {[%clk 0:00:45.9]} 37... Qg5 {[%clk 0:00:48.1]} 38. Rde1
{[%clk 0:00:42.5]} 38... Re7 {[%clk 0:00:46.7]} 39. Qb1 {[%clk 0:00:31.2]} 39...
Rfe8 {[%clk 0:00:41.7]} 40. Nd1 {[%clk 0:00:30.1]} 40... Bc4 {[%clk 0:00:38.4]}
41. Re3 {[%clk 0:00:24]} 41... Bxf1 {[%clk 0:00:36.5]} 42. Rxf1 {[%clk
0:00:24.9]} 42... Qd5 {[%clk 0:00:30.9]} 43. Qb4 {[%clk 0:00:18.2]} 43... Nf5
{[%clk 0:00:25.5]} 44. Nc3 {[%clk 0:00:14.5]} 44... Qxd4 {[%clk 0:00:20.2]} 45.
Qxd4+ {[%clk 0:00:09]} 45... Nxd4 {[%clk 0:00:21.1]} 46. Rf4 {[%clk 0:00:07.5]}
46... Nc2 {[%clk 0:00:18.8]} 47. Rexe4 {[%clk 0:00:07.4]} 47... Rxe4 {[%clk
0:00:18.6]} 48. Nxe4 {[%clk 0:00:07.7]} 48... Nxa3 {[%clk 0:00:17.8]} 49. Nd6
{[%clk 0:00:08]} 49... Re1+ {[%clk 0:00:17]} 50. Kf2 {[%clk 0:00:07.9]} 50...
Re7 {[%clk 0:00:17.4]} 51. Ra4 {[%clk 0:00:05.2]} 51... Nc2 {[%clk 0:00:16.2]}
52. Nb5 {[%clk 0:00:05]} 52... a5 {[%clk 0:00:15.3]} 53. Nc3 {[%clk 0:00:03.7]}
53... Nb4 {[%clk 0:00:15]} 54. Ra1 {[%clk 0:00:02.1]} 54... Rc7 {[%clk
0:00:13.4]} 55. Nb5 {[%clk 0:00:01.8]} 55... Rc5 {[%clk 0:00:13.4]} 56. Kf3
{[%clk 0:00:02.1]} 56... Rxb5 {[%clk 0:00:13.3]} 0-1

[Event "*** SCC Grand Prix: Titled Tuesday Blitz"]
[Site "Chess.com"]
[Date "2020.08.25"]
[Round "3"]
[White "Schandenfreude"]
[Black "icychess54"]
[Result "1-0"]
[WhiteElo "2500"]
[BlackElo "2245"]
[TimeControl "180+1"]
[EndTime "10:31:15 PDT"]
[Termination "Schandenfreude won by checkmate"]

1. Nf3 {[%clk 0:03:00.9]} 1... d5 {[%clk 0:02:59.3]} 2. e3 {[%clk 0:02:58.7]}
2... Nf6 {[%clk 0:02:59.5]} 3. c4 {[%clk 0:02:58.7]} 3... c5 {[%clk 0:02:58.2]}
4. cxd5 {[%clk 0:02:51.6]} 4... Nxd5 {[%clk 0:02:57.5]} 5. d4 {[%clk 0:02:51.6]}
5... cxd4 {[%clk 0:02:45.2]} 6. exd4 {[%clk 0:02:51.3]} 6... Bg4 {[%clk
0:02:41.7]} 7. Be2 {[%clk 0:02:46.3]} 7... e6 {[%clk 0:02:39]} 8. O-O {[%clk
0:02:43.4]} 8... Nc6 {[%clk 0:02:34.8]} 9. Nc3 {[%clk 0:02:42.9]} 9... Be7
{[%clk 0:02:30]} 10. Qb3 {[%clk 0:02:24.4]} 10... O-O {[%clk 0:02:02.5]} 11.
Nxd5 {[%clk 0:02:13.2]} 11... Qxd5 {[%clk 0:01:57]} 12. Qxd5 {[%clk 0:02:00.1]}
12... exd5 {[%clk 0:01:56.3]} 13. Be3 {[%clk 0:01:59.6]} 13... Bf6 {[%clk
0:01:52]} 14. Rfd1 {[%clk 0:01:45.3]} 14... Rac8 {[%clk 0:01:40.9]} 15. h3
{[%clk 0:01:40.7]} 15... Bf5 {[%clk 0:01:35.5]} 16. g4 {[%clk 0:01:34.2]} 16...
Be4 {[%clk 0:01:29.6]} 17. g5 {[%clk 0:01:29.9]} 17... Be7 {[%clk 0:01:29.5]}
18. Nd2 {[%clk 0:00:57.5]} 18... Bf5 {[%clk 0:01:18.7]} 19. h4 {[%clk
0:00:49.4]} 19... Nb4 {[%clk 0:01:17.4]} 20. Nb3 {[%clk 0:00:40]} 20... Rc2
{[%clk 0:01:00.4]} 21. Rd2 {[%clk 0:00:27.4]} 21... Rfc8 {[%clk 0:01:00]} 22.
Nc5 {[%clk 0:00:22.1]} 22... b6 {[%clk 0:00:47.3]} 23. Nb3 {[%clk 0:00:20.1]}
23... Rxd2 {[%clk 0:00:45.8]} 24. Bxd2 {[%clk 0:00:20.2]} 24... Rc2 {[%clk
0:00:46.5]} 25. Rc1 {[%clk 0:00:08.9]} 25... Rxb2 {[%clk 0:00:41.6]} 26. Rc7
{[%clk 0:00:08.7]} 26... Bd6 {[%clk 0:00:38.8]} 27. Rxa7 {[%clk 0:00:06.6]}
27... Rxd2 {[%clk 0:00:37.5]} 28. Nxd2 {[%clk 0:00:05.7]} 28... Nc2 {[%clk
0:00:32.1]} 29. Nf3 {[%clk 0:00:04.1]} 29... Be4 {[%clk 0:00:28.9]} 30. Ra8+
{[%clk 0:00:03.6]} 30... Bf8 {[%clk 0:00:28.7]} 31. Bd1 {[%clk 0:00:03]} 31...
Bxf3 {[%clk 0:00:26.2]} 32. Bxf3 {[%clk 0:00:02.9]} 32... Nxd4 {[%clk
0:00:27.1]} 33. Bxd5 {[%clk 0:00:03.1]} 33... g6 {[%clk 0:00:23.9]} 34. Ra7
{[%clk 0:00:02.9]} 34... Ne6 {[%clk 0:00:21.9]} 35. Bxe6 {[%clk 0:00:03.5]}
35... fxe6 {[%clk 0:00:21]} 36. Kg2 {[%clk 0:00:04.4]} 36... Bc5 {[%clk
0:00:18.9]} 37. Kf3 {[%clk 0:00:04.8]} 37... e5 {[%clk 0:00:14.1]} 38. Rb7
{[%clk 0:00:04]} 38... Bd4 {[%clk 0:00:12.3]} 39. Ke2 {[%clk 0:00:04]} 39... Kh8
{[%clk 0:00:09.6]} 40. f3 {[%clk 0:00:04.3]} 40... Kg8 {[%clk 0:00:08.6]} 41.
Kd3 {[%clk 0:00:03.4]} 41... Bf2 {[%clk 0:00:08.7]} 42. Ke4 {[%clk 0:00:03.6]}
42... Bxh4 {[%clk 0:00:09]} 43. Rxb6 {[%clk 0:00:03.2]} 43... Bxg5 {[%clk
0:00:09.2]} 44. a4 {[%clk 0:00:03.5]} 44... Kg7 {[%clk 0:00:03.6]} 45. Rb7+
{[%clk 0:00:03.8]} 45... Kf6 {[%clk 0:00:02.6]} 46. a5 {[%clk 0:00:04.7]} 46...
h5 {[%clk 0:00:01.9]} 47. a6 {[%clk 0:00:05.6]} 47... h4 {[%clk 0:00:01.1]} 48.
a7 {[%clk 0:00:06.1]} 48... h3 {[%clk 0:00:02]} 49. a8=Q {[%clk 0:00:06.1]}
49... h2 {[%clk 0:00:02.9]} 50. Qd8+ {[%clk 0:00:06.2]} 50... Ke6 {[%clk
0:00:03]} 51. Qxg5 {[%clk 0:00:05.9]} 51... Kd6 {[%clk 0:00:01.8]} 52. Qxg6+
{[%clk 0:00:06.3]} 52... Kc5 {[%clk 0:00:01.9]} 53. Rh7 {[%clk 0:00:06.6]} 53...
Kc4 {[%clk 0:00:02.8]} 54. Rxh2 {[%clk 0:00:06.6]} 54... Kc3 {[%clk 0:00:03.6]}
55. Qc6+ {[%clk 0:00:06.2]} 55... Kb3 {[%clk 0:00:04.5]} 56. Qc2+ {[%clk
0:00:05.6]} 56... Kb4 {[%clk 0:00:05.4]} 57. Qb2+ {[%clk 0:00:06]} 57... Ka4
{[%clk 0:00:06.3]} 58. Qa2+ {[%clk 0:00:05.6]} 58... Kb4 {[%clk 0:00:06.5]} 59.
Rb2+ {[%clk 0:00:06.5]} 59... Kc3 {[%clk 0:00:07.4]} 60. Rb3+ {[%clk 0:00:06.8]}
60... Kc4 {[%clk 0:00:07.4]} 61. Qa4+ {[%clk 0:00:07.1]} 61... Kc5 {[%clk
0:00:08.3]} 62. Rb5+ {[%clk 0:00:07.7]} 62... Kc6 {[%clk 0:00:09.2]} 63. Qa6+
{[%clk 0:00:08.3]} 63... Kd7 {[%clk 0:00:09.8]} 64. Rb7+ {[%clk 0:00:08.6]}
64... Ke8 {[%clk 0:00:10.5]} 65. Qa8# {[%clk 0:00:08.5]} 1-0